fUSD/lending_fUSD_20250524
["ID","MTS","AMOUNT","RATE_DAILY","PERIOD"]
[362238964,1748116240997,-420.0,0.00019232,2]
[362238967,1748116241007,-420.0,0.00019232,2]
[362238968,1748116241017,-420.0,0.00019232,2]
[362238971,1748116241028,-420.0,0.00019232,2]
[362238972,1748116241037,-420.0,0.00019232,2]
[362238974,1748116241047,-420.0,0.00019232,2]
[362238995,1748116241249,-420.0,0.00019232,2]
[362238997,1748116241260,-420.0,0.00019232,2]
[362238999,1748116241270,-420.0,0.00019232,2]
[362239001,1748116241279,-420.0,0.00019232,2]
[362239003,1748116241288,-385.90580426,0.00019232,2]
[362239005,1748116241298,-420.0,0.00019232,2]
[362239007,1748116241307,-420.0,0.00019232,2]
[362239009,1748116241317,-420.0,0.00019232,2]
[362239011,1748116241327,-420.0,0.00019232,2]
[362239013,1748116241336,-420.0,0.00019232,2]
[362239014,1748116241346,-420.0,0.00019232,2]
[362239016,1748116241356,-420.0,0.00019232,2]
[362239018,1748116241365,-420.0,0.00019232,2]
[362239020,1748116241374,-420.0,0.00019232,2]
[362239022,1748116241384,-420.0,0.00019232,2]
[362239024,1748116241394,-250.0,0.00019232,2]
[362239026,1748116241404,-420.0,0.00019232,2]
[362239028,1748116241413,-354.87062839,0.00019232,2]
[362239030,1748116241423,-420.0,0.00019232,2]
[362239032,1748116241432,-420.0,0.00019232,2]
[362239034,1748116241441,-420.0,0.00019232,2]
[362239035,1748116241451,-420.0,0.00019232,2]
[362239036,1748116241460,-420.0,0.00019232,2]
[362239037,1748116241470,-420.0,0.00019232,2]
[362239038,1748116241479,-561.25,0.00019232,2]
[362239039,1748116241488,-420.0,0.00019232,2]
[362239040,1748116241498,-420.0,0.00019232,2]
[362239041,1748116241509,-4383.53,0.00019232,2]
[362239042,1748116241519,-420.0,0.00019232,2]
[362239043,1748116241528,-420.0,0.00019232,2]
[362239044,1748116241538,-420.0,0.00019232,2]
[362239045,1748116241548,-420.0,0.00019232,2]
[362239046,1748116241557,-3769.69,0.00019232,2]
[362239047,1748116241567,-420.0,0.00019232,2]
[362239048,1748116241582,-420.0,0.00019232,2]
[362239049,1748116241593,-420.0,0.00019232,2]
[362239050,1748116241603,-420.0,0.00019232,2]
[362239051,1748116241612,-420.0,0.00019232,2]
[362239052,1748116241622,-656.85,0.00019232,2]
[362239053,1748116241632,-5179.25,0.00019232,2]
[362239054,1748116241641,-389.42226546,0.00019232,2]
[362239055,1748116241652,-420.0,0.00019232,2]
[362239056,1748116241661,-12680.55,0.00019232,2]
[362239057,1748116241671,-420.0,0.00019232,2]
[362239058,1748116241681,-2547.29,0.00019232,2]
[362239059,1748116241691,-420.0,0.00019232,2]
[362239060,1748116241702,-1162.86,0.00019232,2]
[362239061,1748116241711,-1344.45,0.00019232,2]
[362239062,1748116241722,-309.38169857,0.00019232,2]
[362239063,1748116241732,-656.04,0.00019232,2]
[362239064,1748116241742,-1282.98,0.00019232,2]
[362239065,1748116241751,-420.0,0.00019232,2]
[362239066,1748116241761,-263.0358843,0.00019232,2]
[362239067,1748116241770,-420.0,0.00019232,2]
[362239068,1748116241780,-2271.15,0.00019232,2]
[362239069,1748116241790,-420.0,0.00019232,2]
[362239070,1748116241799,-420.0,0.00019232,2]
[362239071,1748116241809,-696.43,0.00019232,2]
[362239072,1748116241818,-420.0,0.00019232,2]
[362239073,1748116241828,-420.0,0.00019232,2]
[362239074,1748116241838,-420.0,0.00019232,2]
[362239075,1748116241847,-420.0,0.00019232,2]
[362239076,1748116241857,-420.0,0.00019232,2]
[362239077,1748116241867,-420.0,0.00019232,2]
[362239078,1748116241877,-2286.12,0.00019232,2]
[362239079,1748116241888,-420.0,0.00019232,2]
[362239080,1748116241897,-174491.89,0.00019232,2]
[362239081,1748116241907,-420.0,0.00019232,2]
[362239082,1748116241917,-420.0,0.00019232,2]
[362239083,1748116241927,-420.0,0.00019232,2]
[362239084,1748116241937,-420.0,0.00019232,2]
[362239085,1748116241948,-518.3,0.00019232,2]
[362239086,1748116241959,-420.0,0.00019232,2]
[362239087,1748116241970,-7135.55,0.00019232,2]
[362239088,1748116241980,-596.93,0.00019232,2]
[362239089,1748116241991,-420.0,0.00019232,2]
[362239090,1748116242001,-420.0,0.00019232,2]
[362239091,1748116242013,-420.0,0.00019232,2]
[362239092,1748116242025,-2374.36,0.00019232,2]
[362239093,1748116242037,-420.0,0.00019232,2]
[362239094,1748116242047,-316.95209069,0.00019232,2]
[362239095,1748116242058,-420.0,0.00019232,2]
[362239096,1748116242069,-387.57,0.00019232,2]
[362239097,1748116242079,-420.0,0.00019232,2]
[362239098,1748116242090,-523.72598001,0.00019232,2]
[362239099,1748116242100,-420.0,0.00019232,2]
[362239100,1748116242110,-420.0,0.00019232,2]
[362239101,1748116242119,-420.0,0.00019232,2]
[362239102,1748116242129,-516.16,0.00019232,2]
[362239103,1748116242139,-529.42,0.00019232,2]
[362239104,1748116242150,-420.0,0.00019232,2]
[362239105,1748116242161,-420.0,0.00019232,2]
[362239106,1748116242171,-420.0,0.00019232,2]
[362239107,1748116242181,-420.0,0.00019232,2]
[362239108,1748116242190,-420.0,0.00019232,2]
[362239109,1748116242200,-420.0,0.00019232,2]
[362239110,1748116242209,-8126.19,0.00019232,2]
[362239111,1748116242219,-481.48,0.00019232,2]
[362239112,1748116242233,-420.0,0.00019232,2]
[362239113,1748116242246,-509.53111698,0.00019232,2]
[362239114,1748116242256,-420.0,0.00019232,2]
[362239115,1748116242265,-420.0,0.00019232,2]
[362239116,1748116242275,-4788.51,0.00019232,2]
[362239117,1748116242284,-213.40873892,0.00019232,2]
[362239118,1748116242293,-420.0,0.00019232,2]
[362239119,1748116242303,-5164.09,0.00019232,2]
[362239120,1748116242313,-420.0,0.00019232,2]
[362239121,1748116242322,-2539.15,0.00019232,2]
[362239122,1748116242332,-420.0,0.00019232,2]
[362239123,1748116242341,-2472.14,0.00019232,2]
[362239124,1748116242351,-420.0,0.00019232,2]
[362239125,1748116242361,-420.0,0.00019232,2]
[362239126,1748116242370,-420.0,0.00019232,2]
[362239127,1748116242380,-456.31,0.00019232,2]
[362239128,1748116242390,-472.23755263,0.00019232,2]
[362239129,1748116242399,-9389.26,0.00019232,2]
[362239130,1748116242409,-335.2319562,0.00019232,2]
[362239131,1748116242418,-420.0,0.00019232,2]
[362239132,1748116242428,-876.17,0.00019232,2]
[362239133,1748116242438,-645.7,0.00019232,2]
[362239134,1748116242447,-420.0,0.00019232,2]
[362239135,1748116242458,-420.0,0.00019232,2]
[362239136,1748116242467,-420.0,0.00019232,2]
[362239137,1748116242479,-420.0,0.00019232,2]
[362239138,1748116242490,-420.0,0.00019232,2]
[362239139,1748116242501,-420.0,0.00019232,2]
[362239140,1748116242511,-420.0,0.00019232,2]
[362239141,1748116242520,-420.0,0.00019232,2]
[362239142,1748116242530,-545.76,0.00019232,2]
[362239143,1748116242539,-420.0,0.00019232,2]
[362239144,1748116242549,-504.15,0.00019232,2]
[362239145,1748116242559,-190.580656,0.00019232,2]
[362239146,1748116242569,-420.0,0.00019232,2]
[362239147,1748116242580,-534.06,0.00019232,2]
[362239148,1748116242590,-766.65,0.00019232,2]
[362239149,1748116242600,-420.0,0.00019232,2]
[362239150,1748116242610,-420.0,0.00019232,2]
[362239151,1748116242620,-420.0,0.00019232,2]
[362239152,1748116242629,-420.0,0.00019232,2]
[362239153,1748116242639,-420.0,0.00019232,2]
[362239154,1748116242648,-420.0,0.00019232,2]
[362239155,1748116242659,-420.0,0.00019232,2]
[362239157,1748116242670,-420.0,0.00019232,2]
[362239159,1748116242680,-420.0,0.00019232,2]
[362239161,1748116242690,-1478.62,0.00019232,2]
[362239163,1748116242699,-420.0,0.00019232,2]
[362239164,1748116242709,-420.0,0.00019232,2]
[362239165,1748116242718,-420.0,0.00019232,2]
[362239166,1748116242728,-420.0,0.00019232,2]
[362239167,1748116242737,-420.0,0.00019232,2]
[362239169,1748116242747,-420.0,0.00019232,2]
[362239170,1748116242756,-2864.50151044,0.00019236,2]
[362239171,1748116242766,-3428.15493359,0.00019248,2]
[362239172,1748116242776,-980.2993,0.00019259,2]
[362239173,1748116242785,-420.0,0.0001926,2]
[362239174,1748116242794,-420.0,0.0001926,2]
[362239175,1748116242804,-420.0,0.0001926,2]
[362239176,1748116242813,-420.0,0.0001926,2]
[362239177,1748116242824,-420.0,0.0001926,2]
[362239178,1748116242834,-420.0,0.0001926,2]
[362239180,1748116242844,-420.0,0.0001926,2]
[362239181,1748116242853,-420.0,0.0001926,2]
[362239183,1748116242864,-420.0,0.0001926,2]
[362239184,1748116242873,-420.0,0.0001926,2]
[362239187,1748116242883,-420.0,0.0001926,2]
[362239188,1748116242892,-420.0,0.0001926,2]
[362239189,1748116242902,-420.0,0.0001926,2]
[362239190,1748116242911,-420.0,0.0001926,2]
[362239191,1748116242922,-420.0,0.0001926,2]
[362239192,1748116242932,-411.45891999,0.0001926,2]
[362239193,1748116242941,-420.0,0.0001926,2]
[362239194,1748116242951,-420.0,0.0001926,2]
[362239195,1748116242960,-1297.43,0.0001926,2]
[362239196,1748116242970,-420.0,0.0001926,2]
[362239197,1748116242979,-420.0,0.0001926,2]
[362239198,1748116242990,-398.16574508,0.0001926,2]
[362239199,1748116243000,-420.0,0.0001926,2]
[362239200,1748116243009,-1802.19,0.0001926,2]
[362239201,1748116243019,-927.35,0.0001926,2]
[362239202,1748116243028,-302.38755705,0.0001926,2]
[362239203,1748116243038,-1188.36,0.0001926,2]
[362239204,1748116243047,-420.0,0.0001926,2]
[362239205,1748116243058,-1105.39,0.0001926,2]
[362239206,1748116243068,-420.0,0.0001926,2]
[362239207,1748116243081,-195.17094552,0.0001926,2]
[362239208,1748116243091,-442.46803097,0.0001926,2]
[362239209,1748116243100,-553.0096721,0.0001926,2]
[362239210,1748116243109,-420.0,0.0001926,2]
[362239211,1748116243119,-420.0,0.0001926,2]
[362239212,1748116243129,-420.0,0.0001926,2]
[362239213,1748116243139,-420.0,0.0001926,2]
[362239214,1748116243151,-420.0,0.0001926,2]
[362239215,1748116243161,-420.0,0.0001926,2]
[362239216,1748116243170,-1608.87,0.0001926,2]
[362239217,1748116243180,-420.0,0.0001926,2]
[362239218,1748116243191,-420.0,0.0001926,2]
[362239219,1748116243200,-420.0,0.0001926,2]
[362239220,1748116243211,-486.35,0.0001926,2]
[362239221,1748116243221,-420.0,0.0001926,2]
[362239222,1748116243233,-420.0,0.0001926,2]
[362239223,1748116243243,-420.0,0.0001926,2]
[362239224,1748116243253,-469.4,0.0001926,2]
[362239225,1748116243262,-527.51738673,0.0001926,2]
[362239226,1748116243272,-420.0,0.0001926,2]
[362239227,1748116243282,-420.0,0.0001926,2]
[362239228,1748116243291,-420.0,0.0001926,2]
[362239229,1748116243301,-420.0,0.0001926,2]
[362239230,1748116243310,-420.0,0.0001926,2]
[362239231,1748116243320,-420.0,0.0001926,2]
[362239232,1748116243329,-287.82127754,0.0001926,2]
[362239234,1748116243339,-420.0,0.0001926,2]
[362239237,1748116243348,-420.0,0.0001926,2]
[362239239,1748116243358,-420.0,0.0001926,2]
[362239241,1748116243367,-420.0,0.0001926,2]
[362239243,1748116243377,-420.0,0.0001926,2]
[362239245,1748116243386,-420.0,0.0001926,2]
[362239248,1748116243395,-420.0,0.0001926,2]
[362239251,1748116243405,-510.77310074,0.0001926,2]
[362239254,1748116243415,-420.0,0.0001926,2]
[362239257,1748116243424,-235.3882516,0.0001926,2]
[362239260,1748116243434,-420.0,0.0001926,2]
[362239263,1748116243443,-420.0,0.0001926,2]
[362239266,1748116243452,-308.91247725,0.0001926,2]
[362239269,1748116243461,-367.13527319,0.0001926,2]
[362239272,1748116243471,-420.0,0.0001926,2]
[362239275,1748116243480,-420.0,0.0001926,2]
[362239278,1748116243489,-386.35062913,0.0001926,2]
[362239281,1748116243498,-420.0,0.0001926,2]
[362239284,1748116243507,-420.0,0.0001926,2]
[362239286,1748116243516,-420.0,0.0001926,2]
[362239289,1748116243526,-420.0,0.0001926,2]
[362239292,1748116243535,-256.3712651,0.0001926,2]
[362239295,1748116243545,-420.0,0.0001926,2]
[362239298,1748116243555,-420.0,0.0001926,2]
[362239300,1748116243564,-420.0,0.0001926,2]
[362239303,1748116243574,-420.0,0.0001926,2]
[362239305,1748116243584,-420.0,0.0001926,2]
[362239308,1748116243594,-250.0,0.0001926,2]
[362239311,1748116243604,-181.65025464,0.0001926,2]
[362239316,1748116243616,-420.0,0.0001926,2]
[362239319,1748116243626,-420.0,0.0001926,2]
[362239327,1748116243694,-420.0,0.0001926,2]
[362239329,1748116243704,-241.02661063,0.0001926,2]
[362239331,1748116243713,-420.0,0.0001926,2]
[362239333,1748116243722,-420.0,0.0001926,2]
[362239335,1748116243731,-561.25,0.0001926,2]
[362239336,1748116243741,-420.0,0.0001926,2]
[362239338,1748116243751,-420.0,0.0001926,2]
[362239340,1748116243760,-4383.53,0.0001926,2]
[362239342,1748116243770,-420.0,0.0001926,2]
[362239344,1748116243779,-339.84736401,0.0001926,2]
[362239346,1748116243788,-420.0,0.0001926,2]
[362239348,1748116243797,-3769.69,0.0001926,2]
[362239350,1748116243806,-420.0,0.0001926,2]
[362239352,1748116243815,-344.4551916,0.0001926,2]
[362239354,1748116243825,-420.0,0.0001926,2]
[362239355,1748116243841,-420.0,0.0001926,2]
[362239356,1748116243856,-656.85,0.0001926,2]
[362239357,1748116243865,-5179.25,0.0001926,2]
[362239358,1748116243874,-274.82587193,0.0001926,2]
[362239359,1748116243883,-3782.69774966,0.0001926,2]
[362239428,1748116244639,-8897.85225034,0.0001926,2]
[362239430,1748116244648,-420.0,0.0001926,2]
[362239432,1748116244658,-2547.29,0.0001926,2]
[362239434,1748116244668,-420.0,0.0001926,2]
[362239436,1748116244678,-1162.86,0.0001926,2]
[362239438,1748116244687,-1344.45,0.0001926,2]
[362239440,1748116244696,-656.04,0.0001926,2]
[362239442,1748116244705,-1282.98,0.0001926,2]
[362239444,1748116244715,-420.0,0.0001926,2]
[362239446,1748116244725,-420.0,0.0001926,2]
[362239448,1748116244735,-2271.15,0.0001926,2]
[362239450,1748116244744,-420.0,0.0001926,2]
[362239452,1748116244754,-420.0,0.0001926,2]
[362239454,1748116244763,-696.43,0.0001926,2]
[362239456,1748116244773,-420.0,0.0001926,2]
[362239458,1748116244783,-420.0,0.0001926,2]
[362239460,1748116244793,-420.0,0.0001926,2]
[362239462,1748116244802,-420.0,0.0001926,2]
[362239463,1748116244811,-420.0,0.0001926,2]
[362239465,1748116244821,-420.0,0.0001926,2]
[362239467,1748116244831,-2286.12,0.0001926,2]
[362239469,1748116244840,-420.0,0.0001926,2]
[362239471,1748116244849,-27203.50955103,0.0001926,2]
[362239475,1748116244881,-420.0,0.00019232,2]
[362239477,1748116244894,-147288.38044897,0.0001926,2]
[362239479,1748116244905,-420.0,0.0001926,2]
[362239481,1748116244914,-420.0,0.0001926,2]
[362239483,1748116244924,-420.0,0.0001926,2]
[362239485,1748116244934,-518.3,0.0001926,2]
[362239487,1748116244945,-420.0,0.0001926,2]
[362239489,1748116244954,-7135.55,0.0001926,2]
[362239491,1748116244963,-596.93,0.0001926,2]
[362239493,1748116244973,-420.0,0.0001926,2]
[362239495,1748116244982,-505.68933559,0.0001926,2]
[362239497,1748116244991,-420.0,0.0001926,2]
[362239499,1748116245001,-2374.36,0.0001926,2]
[362239501,1748116245011,-420.0,0.0001926,2]
[362239503,1748116245020,-420.0,0.0001926,2]
[362239505,1748116245029,-420.0,0.0001926,2]
[362239507,1748116245039,-420.0,0.0001926,2]
[362239509,1748116245048,-420.0,0.0001926,2]
[362239510,1748116245058,-516.16,0.0001926,2]
[362239512,1748116245067,-529.42,0.0001926,2]
[362239515,1748116245076,-420.0,0.0001926,2]
[362239517,1748116245086,-420.0,0.0001926,2]
[362239518,1748116245095,-420.0,0.0001926,2]
[362239521,1748116245108,-420.0,0.0001926,2]
[362239523,1748116245117,-8126.19,0.0001926,2]
[362239525,1748116245126,-481.48,0.0001926,2]
[362239527,1748116245136,-420.0,0.0001926,2]
[362239529,1748116245146,-420.0,0.0001926,2]
[362239531,1748116245161,-420.0,0.0001926,2]
[362239533,1748116245171,-4788.51,0.0001926,2]
[362239535,1748116245180,-5164.09,0.0001926,2]
[362239537,1748116245189,-420.0,0.0001926,2]
[362239539,1748116245199,-2539.15,0.0001926,2]
[362239541,1748116245209,-420.0,0.0001926,2]
[362239543,1748116245219,-2472.14,0.0001926,2]
[362239545,1748116245228,-420.0,0.0001926,2]
[362239547,1748116245237,-420.0,0.0001926,2]
[362239549,1748116245247,-420.0,0.0001926,2]
[362239551,1748116245258,-456.31,0.0001926,2]
[362239553,1748116245267,-9389.26,0.0001926,2]
[362239555,1748116245277,-549.03017397,0.0001926,2]
[362239557,1748116245286,-876.17,0.0001926,2]
[362239559,1748116245295,-645.7,0.0001926,2]
[362239561,1748116245305,-420.0,0.0001926,2]
[362239563,1748116245315,-420.0,0.0001926,2]
[362239565,1748116245324,-420.0,0.0001926,2]
[362239567,1748116245334,-420.0,0.0001926,2]
[362239569,1748116245345,-420.0,0.0001926,2]
[362239571,1748116245354,-545.76,0.0001926,2]
[362239573,1748116245364,-420.0,0.0001926,2]
[362239575,1748116245374,-504.15,0.0001926,2]
[362239577,1748116245383,-190.580656,0.0001926,2]
[362239579,1748116245393,-534.06,0.0001926,2]
[362239581,1748116245402,-766.65,0.0001926,2]
[362239583,1748116245411,-420.0,0.0001926,2]
[362239585,1748116245420,-420.0,0.0001926,2]
[362239587,1748116245429,-420.0,0.0001926,2]
[362239589,1748116245439,-420.0,0.0001926,2]
[362239591,1748116245448,-420.0,0.0001926,2]
[362239593,1748116245458,-420.0,0.0001926,2]
[362239594,1748116245468,-420.0,0.0001926,2]
[362239597,1748116245478,-420.0,0.0001926,2]
[362239599,1748116245488,-420.0,0.0001926,2]
[362239601,1748116245497,-1478.62,0.0001926,2]
[362239603,1748116245507,-420.0,0.0001926,2]
[362239605,1748116245516,-420.0,0.0001926,2]
[362239607,1748116245526,-420.0,0.0001926,2]
[362239609,1748116245536,-420.0,0.0001926,2]
[362239611,1748116245545,-420.0,0.0001926,2]
[362239613,1748116245554,-503.16973193,0.00019273,2]
[362239615,1748116245565,-500.0,0.00019273,2]
[362239617,1748116245574,-2864.50151044,0.00019276,2]
[362239619,1748116245583,-176.66967612,0.00019277,2]
[362239621,1748116245592,-420.0,0.00019287,2]
[362239623,1748116245602,-420.0,0.00019287,2]
[362239625,1748116245612,-420.0,0.00019287,2]
[362239626,1748116245622,-420.0,0.00019287,2]
[362239629,1748116245632,-420.0,0.00019287,2]
[362239631,1748116245641,-420.0,0.00019287,2]
[362239633,1748116245651,-419.46395349,0.00019287,2]
[362239635,1748116245660,-420.0,0.00019287,2]
[362239637,1748116245670,-420.0,0.00019287,2]
[362239639,1748116245679,-420.0,0.00019287,2]
[362239642,1748116245689,-420.0,0.00019287,2]
[362239644,1748116245699,-420.0,0.00019287,2]
[362239646,1748116245708,-420.0,0.00019287,2]
[362239648,1748116245718,-420.0,0.00019287,2]
[362239650,1748116245727,-420.0,0.00019287,2]
[362239652,1748116245737,-400.20275439,0.00019287,2]
[362239654,1748116245748,-420.0,0.00019287,2]
[362239656,1748116245757,-1297.43,0.00019287,2]
[362239658,1748116245767,-420.0,0.00019287,2]
[362239660,1748116245776,-420.0,0.00019287,2]
[362239662,1748116245786,-375.77260641,0.00019287,2]
[362239664,1748116245795,-1802.19,0.00019287,2]
[362239666,1748116245805,-927.35,0.00019287,2]
[362239668,1748116245814,-1188.36,0.00019287,2]
[362239670,1748116245824,-379.9030542,0.00019287,2]
[362239673,1748116245834,-1105.39,0.00019287,2]
[362239675,1748116245843,-190.97005016,0.00019287,2]
[362239677,1748116245853,-420.0,0.00019287,2]
[362239679,1748116245863,-420.0,0.00019287,2]
[362239681,1748116245873,-420.0,0.00019287,2]
[362239683,1748116245882,-420.0,0.00019287,2]
[362239685,1748116245892,-420.0,0.00019287,2]
[362239687,1748116245901,-1608.87,0.00019287,2]
[362239689,1748116245911,-420.0,0.00019287,2]
[362239691,1748116245920,-486.35,0.00019287,2]
[362239693,1748116245929,-420.0,0.00019287,2]
[362239695,1748116245939,-332.96837975,0.00019287,2]
[362239697,1748116245948,-236.47433618,0.00019287,2]
[362239699,1748116245958,-469.4,0.00019287,2]
[362239701,1748116245968,-420.0,0.00019287,2]
[362239703,1748116245977,-420.0,0.00019287,2]
[362239705,1748116245986,-260.70797787,0.00019287,2]
[362239707,1748116245996,-420.0,0.00019287,2]
[362239709,1748116246005,-420.0,0.00019287,2]
[362239711,1748116246015,-420.0,0.00019287,2]
[362239713,1748116246024,-420.0,0.00019287,2]
[362239714,1748116246034,-420.0,0.00019287,2]
[362239715,1748116246043,-420.0,0.00019287,2]
[362239716,1748116246052,-420.0,0.00019287,2]
[362239717,1748116246062,-385.42869566,0.00019287,2]
[362239718,1748116246074,-420.0,0.00019287,2]
[362239719,1748116246083,-420.0,0.00019287,2]
[362239720,1748116246092,-420.0,0.00019287,2]
[362239721,1748116246102,-420.0,0.00019287,2]
[362239722,1748116246112,-479.20198246,0.00019287,2]
[362239723,1748116246122,-420.0,0.00019287,2]
[362239725,1748116246131,-420.0,0.00019287,2]
[362239727,1748116246141,-420.0,0.00019287,2]
[362239729,1748116246151,-209.51879719,0.00019287,2]
[362239731,1748116246163,-420.0,0.00019287,2]
[362239733,1748116246173,-420.0,0.00019287,2]
[362239735,1748116246183,-420.0,0.00019287,2]
[362239737,1748116246192,-420.0,0.00019287,2]
[362239739,1748116246202,-324.24654673,0.00019287,2]
[362239741,1748116246216,-420.0,0.00019287,2]
[362239743,1748116246226,-420.0,0.00019287,2]
[362239745,1748116246237,-420.0,0.00019287,2]
[362239747,1748116246247,-420.0,0.00019287,2]
[362239749,1748116246257,-561.25,0.00019287,2]
[362239751,1748116246267,-562.99646637,0.00019287,2]
[362239753,1748116246278,-4383.53,0.00019287,2]
[362239755,1748116246288,-420.0,0.00019287,2]
[362239757,1748116246299,-237.60082784,0.00019287,2]
[362239759,1748116246309,-3769.69,0.00019287,2]
[362239761,1748116246320,-420.0,0.00019287,2]
[362239764,1748116246330,-276.57664199,0.00019287,2]
[362239766,1748116246340,-420.0,0.00019287,2]
[362239768,1748116246352,-656.85,0.00019287,2]
[362239770,1748116246363,-5179.25,0.00019287,2]
[362239772,1748116246373,-12680.55,0.00019287,2]
[362239774,1748116246383,-420.0,0.00019287,2]
[362239776,1748116246393,-2547.29,0.00019287,2]
[362239778,1748116246403,-420.0,0.00019287,2]
[362239780,1748116246413,-1162.86,0.00019287,2]
[362239782,1748116246423,-1344.45,0.00019287,2]
[362239784,1748116246433,-656.04,0.00019287,2]
[362239786,1748116246442,-1282.98,0.00019287,2]
[362239788,1748116246452,-420.0,0.00019287,2]
[362239790,1748116246461,-420.0,0.00019287,2]
[362239792,1748116246471,-2271.15,0.00019287,2]
[362239794,1748116246481,-420.0,0.00019287,2]
[362239796,1748116246490,-420.0,0.00019287,2]
[362239798,1748116246500,-696.43,0.00019287,2]
[362239800,1748116246510,-420.0,0.00019287,2]
[362239802,1748116246519,-420.0,0.00019287,2]
[362239804,1748116246528,-420.0,0.00019287,2]
[362239806,1748116246538,-420.0,0.00019287,2]
[362239808,1748116246548,-420.0,0.00019287,2]
[362239810,1748116246558,-420.0,0.00019287,2]
[362239812,1748116246567,-2286.12,0.00019287,2]
[362239814,1748116246576,-420.0,0.00019287,2]
[362239816,1748116246586,-420.0,0.00019287,2]
[362239818,1748116246596,-174491.89,0.00019287,2]
[362239820,1748116246606,-302.1247568,0.00019287,2]
[362239822,1748116246615,-420.0,0.00019287,2]
[362239824,1748116246624,-518.3,0.00019287,2]
[362239826,1748116246634,-420.0,0.00019287,2]
[362239828,1748116246644,-7135.55,0.00019287,2]
[362239830,1748116246654,-596.93,0.00019287,2]
[362239832,1748116246663,-420.0,0.00019287,2]
[362239834,1748116246673,-501.05050798,0.00019287,2]
[362239835,1748116246682,-2374.36,0.00019287,2]
[362239837,1748116246692,-420.0,0.00019287,2]
[362239840,1748116246702,-236.20458146,0.00019287,2]
[362239842,1748116246712,-420.0,0.00019287,2]
[362239844,1748116246722,-420.0,0.00019287,2]
[362239846,1748116246732,-420.0,0.00019287,2]
[362239848,1748116246742,-516.16,0.00019287,2]
[362239850,1748116246752,-529.42,0.00019287,2]
[362239851,1748116246762,-420.0,0.00019287,2]
[362239853,1748116246771,-420.0,0.00019287,2]
[362239856,1748116246783,-420.0,0.00019287,2]
[362239858,1748116246794,-420.0,0.00019287,2]
[362239860,1748116246804,-8126.19,0.00019287,2]
[362239862,1748116246813,-481.48,0.00019287,2]
[362239864,1748116246823,-356.5427719,0.00019287,2]
[362239866,1748116246834,-420.0,0.00019287,2]
[362239868,1748116246843,-420.0,0.00019287,2]
[362239870,1748116246854,-4788.51,0.00019287,2]
[362239872,1748116246864,-5164.09,0.00019287,2]
[362239874,1748116246874,-420.0,0.00019287,2]
[362239876,1748116246883,-2539.15,0.00019287,2]
[362239878,1748116246893,-526.0867492,0.00019287,2]
[362239880,1748116246903,-2472.14,0.00019287,2]
[362239882,1748116246913,-420.0,0.00019287,2]
[362239884,1748116246924,-420.0,0.00019287,2]
[362239886,1748116246934,-420.0,0.00019287,2]